[Event "28th Hit Open-A 2024"]
[Site "Nova Gorica"]
[Date "2024.01.31"]
[Round "7.4"]
[White "Stevanic, David"]
[Black "Sebenik, Matej"]
[Result "0-1"]
[ECO "C10"]
[WhiteElo "2294"]
[BlackElo "2536"]
[Annotator "RC"]
[PlyCount "120"]
[EventDate "2024.01.22"]
[EventType "swiss"]
[EventCountry "SLO"]
[SourceTitle "playchess.com"]
[Source "ChessBase"]
[SourceQuality "1"]
[TimeControl "5400+30"]

1. e4 {[%emt 0:00:07]} e6 {[%emt 0:00:59]} 2. d4 {[%emt 0:00:05]} d5 {[%emt 0:00:08]} 3. Nc3 {[%emt 0:00:06]} Nf6 {[%emt 0:00:44]} 4. Bg5 {[%emt 0:00:12]} dxe4 {[%emt 0:00:51]} 5. Nxe4 {[%emt 0:00:08]} Nbd7 {[%emt 0:00:05]} 6. Nf3 {[%emt 0:10:22]} h6 {[%emt 0:00:32]} 7. Nxf6+ {[%emt 0:00:28]} Nxf6 {[%emt 0:00:07]} 8. Bf4 {[%emt 0:01:30]} Bd6 {[%emt 0:01:57]} 9. Bg3 {[%emt 0:06:12]} O-O {[%emt 0:07:28]} 10. Be2 {[%emt 0:01:35]} c5 {[%emt 0:09:21]} 11. O-O {[%emt 0:01:00]} Bxg3 {[%emt 0:02:41]} 12. hxg3 {[%emt 0:00:19]} Qb6 {[%emt 0:03:28]} 13. b3 {[%emt 0:05:32]} Rd8 {[%emt 0:08:19]} 14. dxc5 {[%emt 0:03:31]} Qc7 {[%emt 0:00:04]} 15. Qc1 {[%emt 0:13:12]} Qxc5 {[%emt 0:00:20]} 16. Rd1 {[%emt 0:18:50]} Bd7 {[%emt 0:03:23]} 17. Qb2 {[%emt 0:00:52]} Bc6 {[%emt 0:01:07]} 18. b4 {[%emt 0:04:58]} Qb6 {[%emt 0:06:56]} 19. c4 {[%emt 0:00:27]} a5 {[%emt 0:03:24]} 20. a3 {[%emt 0:02:21]} axb4 {[%emt 0:07:51]} 21. axb4 {[%emt 0:00:23]} Rxa1 {[%emt 0:00:15]} 22. Rxa1 {[%emt 0:00:15]} Ne4 {[%emt 0:00:16]} 23. Bf1 {[%emt 0:00:56]} Rd2 {[%emt 0:07:03]} 24. Nxd2 {[%emt 0:20:42]} Qxf2+ {[%emt 0:00:18]} 25. Kh2 {[%emt 0:00:05]} Qxg3+ {[%emt 0:01:15]} 26. Kg1 {[%emt 0:00:58]} Qf2+ {[%emt 0:09:01]} 27. Kh2 {[%emt 0:00:07]} Nxd2 {[%emt 0:00:28]} 28. Kh1 {[%emt 0:01:12]} Qf4 {[%emt 0:05:58]} 29. Kg1 {[%emt 0:04:02]} Qe3+ {[%emt 0:10:46]} 30. Kh2 {[%emt 0:00:41]} f5 {[%emt 0:00:49]} 31. b5 {[%emt 0:01:05]} Be4 {[%emt 0:04:32]} 32. Rd1 {[%emt 0:01:05]} Nxf1+ {[%emt 0:00:53]} 33. Rxf1 {[%emt 0:00:02]} Qd3 {[%emt 0:00:29]} 34. Rc1 {[%emt 0:01:36]} f4 {[%emt 0:00:48]} 35. c5 {[%emt 0:00:55]} Qg3+ {[%emt 0:00:08]} 36. Kg1 {[%emt 0:00:16]} Qe3+ {[%emt 0:00:43]} 37. Kh2 {[%emt 0:00:19]} f3 {[%emt 0:01:34]} 38. c6 {[%emt 0:01:22]} bxc6 {[%emt 0:00:31]} 39. bxc6 {[%emt 0:00:10]} fxg2 {[%emt 0:01:32]} 40. c7 {[%emt 0:01:28]} g1=Q+ {[%emt 0:00:42]} 41. Rxg1 {[%emt 0:00:02]} Qf4+ {[%emt 0:00:06]} 42. Rg3 {[%emt 0:00:08]} Qxc7 {[%emt 0:00:06]} 43. Qc3 {[%emt 0:00:28]} Qxc3 {[%emt 0:00:29]} 44. Rxc3 {[%emt 0:00:01]} Kf7 {[%emt 0:00:09]} 45. Kg3 {[%emt 0:00:25]} g5 {[%emt 0:01:04]} 46. Rc4 {[%emt 0:00:24]} Bf5 {[%emt 0:00:15]} 47. Rc7+ {[%emt 0:00:50]} Kf6 {[%emt 0:00:05]} 48. Rc8 {[%emt 0:00:06]} h5 {[%emt 0:00:09]} 49. Rh8 {[%emt 0:00:38]} h4+ {[%emt 0:00:06]} 50. Kf3 {[%emt 0:00:07]} Ke5 {[%emt 0:00:32]} 51. Ke3 {[%emt 0:00:40]} Kf6 {[%emt 0:02:48]} 52. Kf3 {[%emt 0:01:38]} g4+ {[%emt 0:00:09]} 53. Ke3 {[%emt 0:01:10]} Kg5 {[%emt 0:00:07]} 54. Rg8+ {[%emt 0:00:17]} Bg6 {[%emt 0:00:05]} 55. Ra8 {[%emt 0:00:15]} h3 {[%emt 0:01:19]} 56. Rh8 {[%emt 0:00:37]} e5 {[%emt 0:00:18]} 57. Kf2 {[%emt 0:00:44]} Kf4 {[%emt 0:00:06]} 58. Kg1 {[%emt 0:00:36]} Kg3 {[%emt 0:00:13]} 59. Rh6 {[%emt 0:00:28]} Be4 {[%emt 0:00:09]} 60. Rh5 {[%emt 0:00:30]} Bf3 {[%emt 0:00:41]} 0-1

[Event "28th Hit Open-A 2024"]
[Site "Nova Gorica"]
[Date "2024.01.31"]
[Round "7.5"]
[White "Bodrogi, Bendeguz"]
[Black "Beliavsky, Alexander G"]
[Result "1/2-1/2"]
[ECO "A87"]
[WhiteElo "2261"]
[BlackElo "2475"]
[Annotator "RC"]
[PlyCount "36"]
[EventDate "2024.01.22"]
[EventType "swiss"]
[EventCountry "SLO"]
[SourceTitle "playchess.com"]
[Source "ChessBase"]
[SourceQuality "1"]
[TimeControl "5400+30"]

1. Nf3 {[%emt 0:00:13]} f5 {[%emt 0:00:14]} 2. g3 {[%emt 0:03:01]} Nf6 {[%emt 0:00:13]} 3. Bg2 {[%emt 0:00:15]} g6 {[%emt 0:00:29]} 4. O-O {[%emt 0:01:57]} Bg7 {[%emt 0:00:05]} 5. c4 {[%emt 0:00:11]} d6 {[%emt 0:00:31]} 6. d4 {[%emt 0:00:12]} O-O {[%emt 0:00:07]} 7. Nc3 {[%emt 0:01:26]} Qe8 {[%emt 0:00:10]} 8. d5 {[%emt 0:01:36]} Na6 {[%emt 0:01:31]} 9. Nd4 {[%emt 0:08:21]} Bd7 {[%emt 0:00:12]} 10. e4 {[%emt 0:04:32]} fxe4 {[%emt 0:05:44]} 11. Nxe4 {[%emt 0:02:14]} Nxe4 {[%emt 0:12:34]} 12. Bxe4 {[%emt 0:00:12]} Nc5 {[%emt 0:21:07]} 13. Bg2 {[%emt 0:01:31]} a5 {[%emt 0:02:34]} 14. Be3 {[%emt 0:11:59]} Qc8 {[%emt 0:08:14]} 15. Qd2 {[%emt 0:12:02]} Bh3 {[%emt 0:03:40]} 16. Bh6 {[%emt 0:03:57]} Bxh6 {[%emt 0:03:50]} 17. Qxh6 {[%emt 0:00:35]} Bxg2 {[%emt 0:00:04]} 18. Kxg2 {[%emt 0:00:20]} e5 {[%emt 0:00:33]} 1/2-1/2

[Event "28th Hit Open-A 2024"]
[Site "Nova Gorica"]
[Date "2024.01.31"]
[Round "7.6"]
[White "Skrbec, Leon"]
[Black "Doric, Darko"]
[Result "1/2-1/2"]
[ECO "B13"]
[WhiteElo "2218"]
[BlackElo "2456"]
[Annotator "RC"]
[PlyCount "113"]
[EventDate "2024.01.22"]
[EventType "swiss"]
[EventCountry "SLO"]
[SourceTitle "playchess.com"]
[Source "ChessBase"]
[SourceQuality "1"]
[TimeControl "5400+30"]

1. e4 {[%emt 0:00:07]} c6 {[%emt 0:09:37]} 2. d4 {[%emt 0:00:42]} d5 {[%emt 0:00:06]} 3. exd5 {[%emt 0:01:51]} cxd5 {[%emt 0:00:08]} 4. Bd3 {[%emt 0:00:05]} Nf6 {[%emt 0:00:14]} 5. c3 {[%emt 0:00:12]} Bg4 {[%emt 0:08:25]} 6. Qb3 {[%emt 0:07:03]} Qc7 {[%emt 0:00:22]} 7. Ne2 {[%emt 0:00:37]} Bxe2 {[%emt 0:01:06]} 8. Bxe2 {[%emt 0:00:04]} Nc6 {[%emt 0:02:23]} 9. O-O {[%emt 0:02:20]} e6 {[%emt 0:00:05]} 10. Bf4 {[%emt 0:08:54]} Bd6 {[%emt 0:00:25]} 11. Bxd6 {[%emt 0:00:07]} Qxd6 {[%emt 0:00:03]} 12. Nd2 {[%emt 0:00:23]} O-O {[%emt 0:02:29]} 13. a4 {[%emt 0:08:09]} Qc7 {[%emt 0:01:05]} 14. f4 {[%emt 0:02:32]} g6 {[%emt 0:00:40]} 15. Bd3 {[%emt 0:02:29]} Ne7 {[%emt 0:05:49]} 16. Qd1 {[%emt 0:05:21]} Nf5 {[%emt 0:02:44]} 17. Qf3 {[%emt 0:03:25]} Nd6 {[%emt 0:01:38]} 18. a5 {[%emt 0:02:47]} Rac8 {[%emt 0:07:31]} 19. h3 {[%emt 0:03:37]} b6 {[%emt 0:10:11]} 20. axb6 {[%emt 0:10:39]} axb6 {[%emt 0:01:40]} 21. Rac1 {[%emt 0:03:34]} Ra8 {[%emt 0:01:04]} 22. c4 {[%emt 0:04:51]} dxc4 {[%emt 0:00:16]} 23. Nxc4 {[%emt 0:00:16]} Nxc4 {[%emt 0:00:39]} 24. Bxc4 {[%emt 0:01:55]} Qd6 {[%emt 0:00:49]} 25. Rfd1 {[%emt 0:00:59]} Rac8 {[%emt 0:01:12]} 26. Kh2 {[%emt 0:08:37]} Rfd8 {[%emt 0:02:39]} 27. Rc3 {[%emt 0:07:02]} Qb4 {[%emt 0:04:33]} 28. Ba6 {[%emt 0:00:25]} Rb8 {[%emt 0:00:48]} 29. Rb3 {[%emt 0:00:13]} Qd6 {[%emt 0:04:46]} 30. Bb5 {[%emt 0:02:26]} h5 {[%emt 0:00:39]} 31. Bc6 {[%emt 0:01:40]} h4 {[%emt 0:00:26]} 32. Rb5 {[%emt 0:01:33]} Kg7 {[%emt 0:00:33]} 33. Re5 {[%emt 0:01:28]} Rbc8 {[%emt 0:00:19]} 34. Bb7 {[%emt 0:04:06]} Rc7 {[%emt 0:02:02]} 35. Ba6 {[%emt 0:00:21]} Qb4 {[%emt 0:00:43]} 36. Rb5 {[%emt 0:00:36]} Qa4 {[%emt 0:01:42]} 37. Rxb6 {[%emt 0:00:12]} Nd5 {[%emt 0:00:11]} 38. Qe2 {[%emt 0:02:28]} Qc2 {[%emt 0:18:03]} 39. Qxc2 {[%emt 0:02:29]} Rxc2 {[%emt 0:00:03]} 40. Rb3 {[%emt 0:00:20]} Nxf4 {[%emt 0:00:11]} 41. Bf1 {[%emt 0:01:46]} e5 {[%emt 0:00:37]} 42. Rb4 {[%emt 0:01:05]} g5 {[%emt 0:00:08]} 43. b3 {[%emt 0:00:07]} e4 {[%emt 0:05:41]} 44. Re1 {[%emt 0:01:14]} f5 {[%emt 0:00:09]} 45. Rb7+ {[%emt 0:00:12]} Kf6 {[%emt 0:00:50]} 46. Rb6+ {[%emt 0:00:09]} Ke7 {[%emt 0:00:24]} 47. Ra1 {[%emt 0:00:11]} Rxd4 {[%emt 0:01:39]} 48. Rh6 {[%emt 0:00:14]} Rcd2 {[%emt 0:00:51]} 49. Raa6 {[%emt 0:00:49]} Rd7 {[%emt 0:02:41]} 50. Rh7+ {[%emt 0:01:18]} Kd8 {[%emt 0:02:13]} 51. Ra8+ {[%emt 0:00:04]} Kc7 {[%emt 0:00:03]} 52. Ra7+ {[%emt 0:00:04]} Kc8 {[%emt 0:00:54]} 53. Ba6+ {[%emt 0:00:47]} Kd8 {[%emt 0:00:11]} 54. Rh8+ {[%emt 0:01:23]} Ke7 {[%emt 0:00:04]} 55. Rh7+ {[%emt 0:00:03]} Kd8 {[%emt 0:00:41]} 56. Rh8+ {[%emt 0:00:03]} Ke7 {[%emt 0:00:04]} 57. Rh7+ {[%emt 0:00:03]} 1/2-1/2

[Event "28th Hit Open-A 2024"]
[Site "Nova Gorica"]
[Date "2024.01.31"]
[Round "7.7"]
[White "Gaal, Zsoka"]
[Black "Furlan, Miha"]
[Result "1-0"]
[ECO "A88"]
[WhiteElo "2341"]
[BlackElo "2287"]
[Annotator "RC"]
[PlyCount "99"]
[EventDate "2024.01.22"]
[EventType "swiss"]
[EventCountry "SLO"]
[SourceTitle "playchess.com"]
[Source "ChessBase"]
[SourceQuality "1"]
[TimeControl "5400+30"]

1. d4 {[%emt 0:00:15]} f5 {[%emt 0:00:18]} 2. Nf3 {[%emt 0:00:23]} Nf6 {[%emt 0:00:19]} 3. g3 {[%emt 0:00:23]} g6 {[%emt 0:00:47]} 4. Bg2 {[%emt 0:00:11]} Bg7 {[%emt 0:00:08]} 5. c4 {[%emt 0:00:19]} d6 {[%emt 0:02:11]} 6. O-O {[%emt 0:00:19]} O-O {[%emt 0:00:12]} 7. Nc3 {[%emt 0:00:21]} c6 {[%emt 0:00:23]} 8. b3 {[%emt 0:05:10]} Qa5 {[%emt 0:07:24]} 9. Bb2 {[%emt 0:06:39]} e5 {[%emt 0:01:52]} 10. dxe5 {[%emt 0:03:23]} dxe5 {[%emt 0:00:15]} 11. e4 {[%emt 0:01:02]} f4 {[%emt 0:08:01]} 12. Qc2 {[%emt 0:09:42]} Nh5 {[%emt 0:09:20]} 13. Ne2 {[%emt 0:03:22]} Na6 {[%emt 0:22:19]} 14. a3 {[%emt 0:07:18]} h6 {[%emt 0:03:38]} 15. b4 {[%emt 0:09:17]} Qc7 {[%emt 0:00:42]} 16. h3 {[%emt 0:01:53]} fxg3 {[%emt 0:01:49]} 17. fxg3 {[%emt 0:00:08]} Be6 {[%emt 0:02:16]} 18. Nh4 {[%emt 0:11:13]} Kh7 {[%emt 0:01:28]} 19. g4 {[%emt 0:01:46]} Nf6 {[%emt 0:01:11]} 20. Ng3 {[%emt 0:09:06]} Ng8 {[%emt 0:05:04]} 21. c5 {[%emt 0:06:33]} Rxf1+ {[%emt 0:02:16]} 22. Rxf1 {[%emt 0:00:12]} Rf8 {[%emt 0:01:38]} 23. Nhf5 {[%emt 0:04:12]} Nb8 {[%emt 0:05:15]} 24. Nxg7 {[%emt 0:03:16]} Rxf1+ {[%emt 0:00:50]} 25. Nxf1 {[%emt 0:00:56]} Qxg7 {[%emt 0:11:49]} 26. Nd2 {[%emt 0:00:28]} Nd7 {[%emt 0:01:19]} 27. Nf3 {[%emt 0:00:07]} g5 {[%emt 0:01:12]} 28. Qd2 {[%emt 0:02:36]} Qe7 {[%emt 0:03:38]} 29. Nxe5 {[%emt 0:00:33]} Nxe5 {[%emt 0:00:51]} 30. Bxe5 {[%emt 0:00:07]} Qd7 {[%emt 0:00:23]} 31. Qd6 {[%emt 0:06:00]} Ne7 {[%emt 0:00:48]} 32. Bf6 {[%emt 0:01:54]} Ng8 {[%emt 0:01:29]} 33. Bd4 {[%emt 0:03:45]} Ne7 {[%emt 0:00:58]} 34. Bf1 {[%emt 0:01:38]} Ng6 {[%emt 0:04:40]} 35. Bc4 {[%emt 0:00:11]} Qxd6 {[%emt 0:00:40]} 36. cxd6 {[%emt 0:00:06]} Bd7 {[%emt 0:00:33]} 37. Bxa7 {[%emt 0:01:23]} b5 {[%emt 0:00:18]} 38. Bb3 {[%emt 0:00:57]} Nf4 {[%emt 0:00:17]} 39. Kh2 {[%emt 0:00:14]} Ne6 {[%emt 0:00:08]} 40. Be3 {[%emt 0:00:43]} Kg6 {[%emt 0:00:33]} 41. Bd2 {[%emt 0:00:48]} Nd4 {[%emt 0:00:27]} 42. Bd1 {[%emt 0:00:05]} Ne6 {[%emt 0:00:58]} 43. Kg3 {[%emt 0:00:23]} Nd4 {[%emt 0:00:22]} 44. Be3 {[%emt 0:01:19]} Ne6 {[%emt 0:00:10]} 45. e5 {[%emt 0:00:34]} Kg7 {[%emt 0:00:26]} 46. h4 {[%emt 0:00:37]} Kg6 {[%emt 0:00:49]} 47. Bc2+ {[%emt 0:00:06]} Kg7 {[%emt 0:00:48]} 48. Bf5 {[%emt 0:00:11]} Kf7 {[%emt 0:00:40]} 49. hxg5 {[%emt 0:00:16]} hxg5 {[%emt 0:00:05]} 50. Bxg5 {[%emt 0:00:23]} 1-0

[Event "28th Hit Open-A 2024"]
[Site "Nova Gorica"]
[Date "2024.01.31"]
[Round "7.8"]
[White "Ashwath, R.."]
[Black "Goroshkov, Maksym"]
[Result "1/2-1/2"]
[ECO "A11"]
[WhiteElo "2284"]
[BlackElo "2338"]
[Annotator "RC"]
[PlyCount "36"]
[EventDate "2024.01.22"]
[EventType "swiss"]
[EventCountry "SLO"]
[SourceTitle "playchess.com"]
[Source "ChessBase"]
[SourceQuality "1"]
[TimeControl "5400+30"]

1. Nf3 {[%emt 0:08:31]} d5 {[%emt 0:00:44]} 2. g3 {[%emt 0:00:45]} Nf6 {[%emt 0:00:26]} 3. Bg2 {[%emt 0:00:05]} c6 {[%emt 0:00:05]} 4. O-O {[%emt 0:00:35]} g6 {[%emt 0:01:25]} 5. b3 {[%emt 0:08:43]} Bg7 {[%emt 0:00:11]} 6. Bb2 {[%emt 0:00:04]} O-O {[%emt 0:00:09]} 7. c4 {[%emt 0:00:30]} Bg4 {[%emt 0:00:47]} 8. d3 {[%emt 0:05:15]} Nbd7 {[%emt 0:12:13]} 9. cxd5 {[%emt 0:03:53]} Bxf3 {[%emt 0:03:01]} 10. Bxf3 {[%emt 0:00:20]} cxd5 {[%emt 0:00:12]} 11. Nc3 {[%emt 0:12:02]} e6 {[%emt 0:02:03]} 12. Rc1 {[%emt 0:03:18]} Qa5 {[%emt 0:02:23]} 13. a3 {[%emt 0:01:35]} Rfc8 {[%emt 0:00:52]} 14. b4 {[%emt 0:01:07]} Qd8 {[%emt 0:00:35]} 15. Qb3 {[%emt 0:04:11]} Bh6 {[%emt 0:05:20]} 16. Rb1 {[%emt 0:03:36]} Qb6 {[%emt 0:06:17]} 17. e4 {[%emt 0:06:08]} dxe4 {[%emt 0:07:27]} 18. dxe4 {[%emt 0:01:44]} Bg7 {[%emt 0:26:59]} 1/2-1/2

[Event "28th Hit Open-A 2024"]
[Site "Nova Gorica"]
[Date "2024.01.31"]
[Round "7.9"]
[White "Fercec, Nenad"]
[Black "Plaskan, Jure"]
[Result "1-0"]
[ECO "B43"]
[WhiteElo "2410"]
[BlackElo "2262"]
[Annotator "RC"]
[PlyCount "161"]
[EventDate "2024.01.22"]
[EventType "swiss"]
[EventCountry "SLO"]
[SourceTitle "playchess.com"]
[Source "ChessBase"]
[SourceQuality "1"]
[TimeControl "5400+30"]

1. e4 {[%emt 0:00:05]} c5 {[%emt 0:01:46]} 2. Nf3 {[%emt 0:00:06]} e6 {[%emt 0:00:13]} 3. d4 {[%emt 0:00:05]} cxd4 {[%emt 0:00:05]} 4. Nxd4 {[%emt 0:00:05]} a6 {[%emt 0:00:02]} 5. Nc3 {[%emt 0:00:07]} b5 {[%emt 0:00:24]} 6. Bd3 {[%emt 0:00:11]} Bb7 {[%emt 0:00:40]} 7. O-O {[%emt 0:00:19]} Nc6 {[%emt 0:00:10]} 8. Nxc6 {[%emt 0:00:49]} Bxc6 {[%emt 0:00:05]} 9. Qe2 {[%emt 0:00:38]} Ne7 {[%emt 0:02:37]} 10. a4 {[%emt 0:08:47]} b4 {[%emt 0:17:11]} 11. Nb1 {[%emt 0:00:23]} Ng6 {[%emt 0:00:54]} 12. Bxa6 {[%emt 0:03:50]} Bd6 {[%emt 0:06:47]} 13. Bd3 {[%emt 0:03:17]} Qb8 {[%emt 0:04:12]} 14. f4 {[%emt 0:01:53]} Nxf4 {[%emt 0:22:05]} 15. Qf3 {[%emt 0:00:55]} Ng6 {[%emt 0:00:15]} 16. Qxf7+ {[%emt 0:00:31]} Kd8 {[%emt 0:00:02]} 17. Bg5+ {[%emt 0:00:46]} Kc8 {[%emt 0:00:52]} 18. Nd2 {[%emt 0:00:44]} Bxh2+ {[%emt 0:01:15]} 19. Kh1 {[%emt 0:00:14]} Ra5 {[%emt 0:05:15]} 20. Bb5 {[%emt 0:01:11]} Bxb5 {[%emt 0:02:52]} 21. axb5 {[%emt 0:00:57]} Rxa1 {[%emt 0:00:03]} 22. Rxa1 {[%emt 0:00:22]} Rf8 {[%emt 0:00:19]} 23. Qxg7 {[%emt 0:00:24]} Be5 {[%emt 0:00:05]} 24. Qh6 {[%emt 0:00:20]} Bxb2 {[%emt 0:14:43]} 25. Rb1 {[%emt 0:01:13]} Qg3 {[%emt 0:03:35]} 26. Be3 {[%emt 0:12:30]} Be5 {[%emt 0:01:31]} 27. Qh3 {[%emt 0:03:14]} Qxh3+ {[%emt 0:02:21]} 28. gxh3 {[%emt 0:00:34]} Bc3 {[%emt 0:00:02]} 29. Nc4 {[%emt 0:05:25]} Rf3 {[%emt 0:06:12]} 30. Kg2 {[%emt 0:00:56]} Nh4+ {[%emt 0:00:05]} 31. Kh2 {[%emt 0:00:02]} d5 {[%emt 0:06:15]} 32. exd5 {[%emt 0:00:25]} exd5 {[%emt 0:00:01]} 33. Nb6+ {[%emt 0:00:06]} Kb7 {[%emt 0:00:01]} 34. Nxd5 {[%emt 0:00:05]} Be5+ {[%emt 0:00:13]} 35. Kg1 {[%emt 0:00:10]} Bd6 {[%emt 0:02:36]} 36. Bf2 {[%emt 0:03:14]} Rxh3 {[%emt 0:00:15]} 37. Ra1 {[%emt 0:00:35]} Bh2+ {[%emt 0:01:50]} 38. Kf1 {[%emt 0:00:08]} Bb8 {[%emt 0:00:15]} 39. Ra6 {[%emt 0:00:19]} b3 {[%emt 0:00:41]} 40. cxb3 {[%emt 0:00:11]} Nf5 {[%emt 0:01:00]} 41. Rb6+ {[%emt 0:00:53]} Kc8 {[%emt 0:00:08]} 42. Rf6 {[%emt 0:00:11]} Nd6 {[%emt 0:00:40]} 43. Nb6+ {[%emt 0:02:07]} Kb7 {[%emt 0:00:13]} 44. Nc4 {[%emt 0:00:06]} Rd3 {[%emt 0:01:11]} 45. Bc5 {[%emt 0:01:34]} Ne4 {[%emt 0:00:28]} 46. Rf7+ {[%emt 0:00:14]} Kc8 {[%emt 0:00:15]} 47. b4 {[%emt 0:00:58]} Nd2+ {[%emt 0:00:36]} 48. Nxd2 {[%emt 0:00:24]} Rxd2 {[%emt 0:00:04]} 49. Rxh7 {[%emt 0:00:15]} Rd7 {[%emt 0:00:56]} 50. Rh5 {[%emt 0:00:09]} Kb7 {[%emt 0:00:05]} 51. Ke2 {[%emt 0:00:14]} Ba7 {[%emt 0:01:00]} 52. Ke3 {[%emt 0:00:07]} Bb6 {[%emt 0:00:29]} 53. Ke4 {[%emt 0:00:22]} Bc7 {[%emt 0:00:02]} 54. Rh6 {[%emt 0:00:17]} Bb8 {[%emt 0:00:54]} 55. Re6 {[%emt 0:00:13]} Bc7 {[%emt 0:00:23]} 56. Ra6 {[%emt 0:00:51]} Bb8 {[%emt 0:00:08]} 57. Bd4 {[%emt 0:00:23]} Rd6 {[%emt 0:01:04]} 58. Ra2 {[%emt 0:00:13]} Rd7 {[%emt 0:00:11]} 59. Bc5 {[%emt 0:00:15]} Rd1 {[%emt 0:00:39]} 60. Ra6 {[%emt 0:00:22]} Rd7 {[%emt 0:00:46]} 61. Ke3 {[%emt 0:01:08]} Rd5 {[%emt 0:00:19]} 62. Rg6 {[%emt 0:00:32]} Rd7 {[%emt 0:00:08]} 63. Ke4 {[%emt 0:00:11]} Bc7 {[%emt 0:00:23]} 64. Ra6 {[%emt 0:01:05]} Bb8 {[%emt 0:00:24]} 65. Rg6 {[%emt 0:00:12]} Bc7 {[%emt 0:00:07]} 66. Kf5 {[%emt 0:00:07]} Rd1 {[%emt 0:00:16]} 67. Rg7 {[%emt 0:00:24]} Rf1+ {[%emt 0:01:48]} 68. Ke4 {[%emt 0:00:11]} Re1+ {[%emt 0:00:36]} 69. Kd3 {[%emt 0:00:28]} Kb8 {[%emt 0:00:01]} 70. b6 {[%emt 0:00:21]} Bh2 {[%emt 0:00:52]} 71. Kc4 {[%emt 0:00:10]} Re8 {[%emt 0:00:14]} 72. Kb5 {[%emt 0:00:09]} Rh8 {[%emt 0:00:11]} 73. Ka6 {[%emt 0:00:09]} Be5 {[%emt 0:00:31]} 74. Rg6 {[%emt 0:00:08]} Kc8 {[%emt 0:01:10]} 75. Re6 {[%emt 0:02:08]} Bf4 {[%emt 0:00:24]} 76. Re7 {[%emt 0:00:21]} Rh6 {[%emt 0:00:35]} 77. Ka7 {[%emt 0:00:22]} Rh1 {[%emt 0:00:33]} 78. b7+ {[%emt 0:00:14]} Kd8 {[%emt 0:00:00]} 79. b8=Q+ {[%emt 0:00:31]} Bxb8+ {[%emt 0:00:02]} 80. Kxb8 {[%emt 0:00:08]} Rb1 {[%emt 0:00:01]} 81. Rh7 {[%emt 0:00:14]} 1-0

[Event "28th Hit Open-A 2024"]
[Site "Nova Gorica"]
[Date "2024.01.31"]
[Round "7.10"]
[White "Ceschia, Ivano"]
[Black "Cvitan, Ognjen"]
[Result "0-1"]
[ECO "B50"]
[WhiteElo "2183"]
[BlackElo "2422"]
[Annotator "RC"]
[PlyCount "66"]
[EventDate "2024.01.22"]
[EventType "swiss"]
[EventCountry "SLO"]
[SourceTitle "playchess.com"]
[Source "ChessBase"]
[SourceQuality "1"]
[TimeControl "5400+30"]

1. e4 {[%emt 0:07:24]} c5 {[%emt 0:01:10]} 2. Nf3 {[%emt 0:00:07]} d6 {[%emt 0:00:40]} 3. c3 {[%emt 0:00:22]} Nf6 {[%emt 0:02:06]} 4. Be2 {[%emt 0:00:06]} g6 {[%emt 0:01:30]} 5. O-O {[%emt 0:02:28]} Bg7 {[%emt 0:00:51]} 6. Re1 {[%emt 0:03:48]} O-O {[%emt 0:02:13]} 7. Bf1 {[%emt 0:00:05]} Nc6 {[%emt 0:02:35]} 8. h3 {[%emt 0:00:15]} e5 {[%emt 0:01:53]} 9. d3 {[%emt 0:11:38]} d5 {[%emt 0:13:08]} 10. Nbd2 {[%emt 0:01:27]} Re8 {[%emt 0:02:17]} 11. g3 {[%emt 0:06:28]} h6 {[%emt 0:02:24]} 12. Bg2 {[%emt 0:00:45]} Be6 {[%emt 0:01:52]} 13. a3 {[%emt 0:24:32]} dxe4 {[%emt 0:30:45]} 14. dxe4 {[%emt 0:01:00]} c4 {[%emt 0:00:07]} 15. Bf1 {[%emt 0:05:12]} b5 {[%emt 0:00:49]} 16. b3 {[%emt 0:00:34]} cxb3 {[%emt 0:01:46]} 17. Bxb5 {[%emt 0:08:58]} Rc8 {[%emt 0:01:40]} 18. Ba4 {[%emt 0:02:59]} Bxh3 {[%emt 0:02:00]} 19. Qxb3 {[%emt 0:01:16]} Nd7 {[%emt 0:02:46]} 20. Qc2 {[%emt 0:01:42]} Nd4 {[%emt 0:02:47]} 21. Qd1 {[%emt 0:06:17]} Rxc3 {[%emt 0:01:50]} 22. Nxd4 {[%emt 0:00:10]} exd4 {[%emt 0:00:11]} 23. Bb2 {[%emt 0:00:12]} Rc8 {[%emt 0:01:59]} 24. Nb3 {[%emt 0:00:28]} Re7 {[%emt 0:06:49]} 25. Bxd4 {[%emt 0:00:28]} Bxd4 {[%emt 0:02:11]} 26. Nxd4 {[%emt 0:00:45]} Ne5 {[%emt 0:00:10]} 27. Kh1 {[%emt 0:04:06]} Bg4 {[%emt 0:05:10]} 28. Qd2 {[%emt 0:01:17]} Rc4 {[%emt 0:01:01]} 29. Kg1 {[%emt 0:01:27]} Rc8 {[%emt 0:00:01]} 30. Qd1 {[%emt 0:00:05]} Bh3 {[%emt 0:00:11]} 31. Re3 {[%emt 0:00:08]} Bg4 {[%emt 0:00:03]} 32. f3 {[%emt 0:00:53]} Qb6 {[%emt 0:00:14]} 33. fxg4 {[%emt 0:00:20]} Rd8 0-1

[Event "28th Hit Open-A 2024"]
[Site "Nova Gorica"]
[Date "2024.01.31"]
[Round "7.11"]
[White "Davies, Nigel R"]
[Black "Kozlovic, Jernej"]
[Result "0-1"]
[ECO "A11"]
[WhiteElo "2349"]
[BlackElo "2174"]
[Annotator "RC"]
[PlyCount "74"]
[EventDate "2024.01.22"]
[EventType "swiss"]
[EventCountry "SLO"]
[SourceTitle "playchess.com"]
[Source "ChessBase"]
[SourceQuality "1"]
[TimeControl "5400+30"]

1. Nf3 {[%emt 0:02:15]} d5 {[%emt 0:00:12]} 2. g3 {[%emt 0:00:33]} Bg4 {[%emt 0:01:09]} 3. Bg2 {[%emt 0:00:18]} e6 {[%emt 0:01:28]} 4. O-O {[%emt 0:02:01]} Nf6 {[%emt 0:00:46]} 5. c4 {[%emt 0:01:32]} c6 {[%emt 0:01:51]} 6. d3 {[%emt 0:02:00]} dxc4 {[%emt 0:03:59]} 7. dxc4 {[%emt 0:00:08]} Qxd1 {[%emt 0:00:09]} 8. Rxd1 {[%emt 0:00:07]} Nbd7 {[%emt 0:01:14]} 9. Nc3 {[%emt 0:01:38]} O-O-O {[%emt 0:05:15]} 10. Be3 {[%emt 0:01:59]} Bxf3 {[%emt 0:01:45]} 11. exf3 {[%emt 0:01:55]} Bc5 {[%emt 0:00:53]} 12. a3 {[%emt 0:03:54]} Bxe3 {[%emt 0:12:50]} 13. fxe3 {[%emt 0:00:07]} Nc5 {[%emt 0:00:13]} 14. Bf1 {[%emt 0:07:05]} Nb3 {[%emt 0:01:31]} 15. Rxd8+ {[%emt 0:00:16]} Rxd8 {[%emt 0:00:10]} 16. Rd1 {[%emt 0:00:13]} Rxd1 {[%emt 0:05:25]} 17. Nxd1 {[%emt 0:00:16]} Nd7 {[%emt 0:07:19]} 18. Kf2 {[%emt 0:01:48]} Nd2 {[%emt 0:05:17]} 19. Be2 {[%emt 0:11:48]} Ne5 {[%emt 0:09:33]} 20. f4 {[%emt 0:00:30]} Nexc4 {[%emt 0:01:50]} 21. Ke1 {[%emt 0:02:32]} b5 {[%emt 0:00:18]} 22. Nc3 {[%emt 0:00:25]} Kc7 {[%emt 0:06:17]} 23. Kd1 {[%emt 0:03:40]} a5 {[%emt 0:12:54]} 24. a4 {[%emt 0:17:36]} Kb6 {[%emt 0:05:36]} 25. Kc2 {[%emt 0:02:32]} Nf1 {[%emt 0:02:02]} 26. e4 {[%emt 0:01:15]} Nxh2 {[%emt 0:00:47]} 27. axb5 {[%emt 0:04:30]} cxb5 {[%emt 0:00:27]} 28. Nxb5 {[%emt 0:00:20]} Kxb5 {[%emt 0:05:08]} 29. b3 {[%emt 0:04:37]} Kb4 {[%emt 0:02:07]} 30. bxc4 {[%emt 0:00:31]} f5 {[%emt 0:00:48]} 31. e5 {[%emt 0:02:55]} g6 {[%emt 0:00:38]} 32. c5 {[%emt 0:02:15]} Kxc5 {[%emt 0:00:01]} 33. Kb3 {[%emt 0:00:06]} h6 {[%emt 0:02:06]} 34. Ka4 {[%emt 0:00:15]} g5 {[%emt 0:01:20]} 35. Kxa5 {[%emt 0:00:08]} gxf4 {[%emt 0:00:13]} 36. gxf4 {[%emt 0:00:06]} Ng4 {[%emt 0:00:14]} 37. Ka6 {[%emt 0:00:12]} Ne3 {[%emt 0:00:11]} 0-1